fUST/lending_fUST_20251117
["ID","MTS","AMOUNT","RATE_DAILY","PERIOD"]
[394186526,1763363439652,-775.08,0.0001767,2]
[394186528,1763363439662,-775.08,0.0001767,2]
[394186530,1763363439672,-775.08,0.0001767,2]
[394186532,1763363439681,-518.08160207,0.00017673,2]
[394186534,1763363439691,-502.8585748,0.00017673,2]
[394186536,1763363439700,-500.0,0.00017673,2]
[394186538,1763363439709,-501.81896579,0.00017673,2]
[394186540,1763363439719,-502.26261043,0.00017673,2]
[394186542,1763363439728,-500.0,0.00017673,2]
[394186544,1763363439736,-500.0,0.00017673,2]
[394186546,1763363439748,-500.0,0.00017673,2]
[394186548,1763363439757,-690.98,0.00017739,3]
[394186550,1763363439768,-775.08,0.00017746,2]
[394186552,1763363439777,-230.31,0.00017747,3]
[394186554,1763363439786,-500.0,0.00017747,2]
[394186556,1763363439795,-500.0,0.00017747,2]
[394186558,1763363439804,-1000.0,0.00017747,2]
[394186560,1763363439813,-1000.0,0.00017747,2]
[394186562,1763363439823,-1000.0,0.00017747,2]
[394186564,1763363439832,-1000.0,0.00017747,2]
[394186566,1763363439841,-1000.0,0.00017747,2]
[394186568,1763363439851,-1000.0,0.00017747,2]
[394186570,1763363439861,-1000.0,0.00017747,2]
[394186571,1763363439871,-980.07536057,0.00017747,2]
[394186573,1763363439880,-775.08,0.00017758,2]
[394186576,1763363439890,-160.0,0.00017759,2]
[394186578,1763363439900,-2696.99325693,0.00017759,2]
[394186580,1763363439909,-775.08,0.00017759,2]
[394186582,1763363439919,-775.08,0.00017759,2]
[394186584,1763363439928,-775.08,0.00017759,2]
[394186586,1763363439938,-775.08,0.00017759,2]
[394186587,1763363439948,-775.08,0.00017759,2]
[394186589,1763363439957,-775.08,0.00017759,2]
[394186591,1763363439967,-775.08,0.00017759,2]
[394186593,1763363439976,-775.08,0.00017759,2]
[394186597,1763363439986,-775.08,0.00017759,2]
[394186600,1763363439995,-775.08,0.00017759,2]
[394186602,1763363440005,-775.31545856,0.00017759,2]
[394186605,1763363440015,-330.0,0.00017762,2]
[394186607,1763363440024,-500.0,0.00017773,2]
[394186609,1763363440034,-501.98604669,0.00017773,2]
[394186611,1763363440044,-495.28841905,0.00017773,2]
[394186612,1763363440053,-502.92139257,0.00017773,2]
[394186614,1763363440062,-575.56467831,0.00017773,2]
[394186616,1763363440072,-501.53166973,0.00017773,2]
[394186618,1763363440082,-500.81735696,0.00017773,2]
[394186620,1763363440091,-500.0,0.00017773,2]
[394186622,1763363440100,-501.96334487,0.00017773,2]
[394186624,1763363440110,-507.90955875,0.00017773,2]
[394186626,1763363440119,-500.0,0.00017773,2]
[394186628,1763363440129,-500.0,0.00017773,2]
[394186630,1763363440138,-503.85554989,0.00017773,2]
[394186632,1763363440147,-500.0,0.00017773,2]
[394186634,1763363440157,-500.0,0.00017773,2]
[394186636,1763363440167,-624.42180306,0.00017773,2]
[394186638,1763363440176,-151.0,0.000178,2]
[394186640,1763363440186,-151.0,0.000178,2]
[394186641,1763363440196,-151.0,0.000178,2]
[394186642,1763363440205,-151.0,0.000178,2]
[394186643,1763363440214,-151.0,0.000178,2]
[394186644,1763363440224,-151.0,0.000178,2]
[394186645,1763363440233,-151.0,0.000178,2]
[394186646,1763363440243,-151.0,0.000178,2]
[394186647,1763363440253,-151.0,0.000178,2]
[394186648,1763363440262,-151.0,0.000178,2]
[394186649,1763363440272,-151.0,0.000178,2]
[394186650,1763363440282,-500.0,0.0001784,2]
[394186651,1763363440295,-502.44158823,0.00017973,2]
[394186652,1763363440305,-500.0,0.00017973,2]
[394186653,1763363440318,-429.52953356,0.00017973,2]
[394186654,1763363440328,-500.0,0.00017973,2]
[394186655,1763363440339,-445.08248483,0.00017973,2]
[394186656,1763363440349,-500.0,0.00017973,2]
[394186657,1763363440358,-500.0,0.00017973,2]
[394186658,1763363440370,-500.81441983,0.00017973,2]
[394186659,1763363440379,-267.34034832,0.00017973,2]
[394186660,1763363440390,-441.96562617,0.00017973,2]
[394186661,1763363440400,-500.0,0.00017973,2]
[394186662,1763363440409,-500.0,0.00017973,2]
[394186663,1763363440419,-500.0,0.00017973,2]
[394186664,1763363440429,-501.9597338,0.00017973,2]
[394186665,1763363440438,-502.5065032,0.00017973,2]
[394186666,1763363440448,-500.0,0.00017973,2]
[394186667,1763363440457,-500.0,0.00017973,2]
[394186668,1763363440467,-500.0,0.00017973,2]
[394186670,1763363440476,-500.0,0.00017973,2]
[394186671,1763363440486,-502.15661401,0.00017973,2]
[394186673,1763363440495,-500.0,0.00017973,2]
[394186675,1763363440505,-100000.0,0.0001799,2]
[394186677,1763363440515,-500.0,0.00018114,2]
[394186679,1763363440524,-300.0,0.00018114,2]
[394186681,1763363440534,-300.0,0.00018114,2]
[394186683,1763363440543,-300.0,0.00018114,2]
[394186685,1763363440551,-300.0,0.00018114,2]
[394186687,1763363440561,-300.0,0.00018114,2]
[394186689,1763363440570,-300.0,0.00018114,2]
[394186690,1763363440579,-300.0,0.00018114,2]
[394186691,1763363440588,-300.0,0.00018114,2]
[394186692,1763363440598,-300.0,0.00018114,2]
[394186694,1763363440607,-300.0,0.00018114,2]
[394186696,1763363440617,-300.0,0.00018114,2]
[394186698,1763363440626,-300.0,0.00018114,2]
[394186700,1763363440636,-300.0,0.00018114,2]
[394186702,1763363440645,-300.0,0.00018114,2]
[394186704,1763363440654,-300.0,0.00018114,2]
[394186705,1763363440667,-600.0,0.00018114,2]
[394186707,1763363440676,-508.13254612,0.00018221,2]
[394186708,1763363440685,-1004.49475929,0.00018221,2]
[394186709,1763363440695,-1001.94711302,0.00018221,2]
[394186710,1763363440704,-325.78165932,0.00018221,2]
[394186711,1763363440713,-1000.0,0.00018321,2]
[394186712,1763363440722,-501.42486407,0.00018321,2]
[394186714,1763363440732,-1000.0,0.00018321,2]
[394186716,1763363440741,-501.0503735,0.00018321,2]
[394186718,1763363440750,-2194.24694081,0.00018331,2]
[394186719,1763363440760,-500.0,0.00018388,2]
[394186720,1763363440769,-161.01806223,0.00018389,2]
[394186721,1763363440779,-160.0,0.00018433,2]
[394186722,1763363440788,-511.09051941,0.00018521,2]
[394186723,1763363440797,-1001.19443095,0.00018521,2]
[394186724,1763363440805,-1001.37329497,0.00018521,2]
[394186725,1763363440814,-1000.0,0.00018521,2]
[394186726,1763363440823,-503.94861877,0.00018521,2]
[394186727,1763363440832,-1000.0,0.00018521,2]
[394186728,1763363440842,-1000.0,0.00018521,2]
[394186729,1763363440852,-1000.0,0.00018521,2]
[394186730,1763363440861,-1093.21413216,0.00018521,2]
[394186731,1763363440871,-436.00854889,0.00018521,2]
[394186732,1763363440880,-1090.68055788,0.00018521,2]
[394186733,1763363440890,-500.0,0.00018662,2]
[394186734,1763363440900,-500.0,0.0001885,2]
[394186735,1763363440909,-500.0,0.0001885,2]
[394186736,1763363440919,-500.0,0.0001885,2]
[394186737,1763363440928,-500.0,0.0001885,2]
[394186738,1763363440938,-500.0,0.0001885,2]
[394186739,1763363440947,-500.0,0.0001885,2]
[394186740,1763363440957,-507.23857365,0.0001885,2]
[394186741,1763363440966,-500.0,0.0001885,2]
[394186742,1763363440975,-500.0,0.0001885,2]
[394186743,1763363440985,-500.0,0.0001885,2]
[394186744,1763363440995,-500.0,0.0001885,2]
[394186745,1763363441004,-500.0,0.0001885,2]
[394186746,1763363441014,-500.0,0.0001885,2]
[394186747,1763363441023,-500.0,0.0001885,2]
[394186748,1763363441031,-500.0,0.0001885,2]
[394186749,1763363441041,-500.0,0.0001885,2]
[394186750,1763363441050,-500.0,0.0001885,2]
[394186751,1763363441060,-169.58130387,0.0001885,2]
[394186752,1763363441069,-500.0,0.0001885,2]
[394186753,1763363441079,-500.0,0.0001885,2]
[394186754,1763363441088,-249.43248286,0.0001885,2]
[394186755,1763363441098,-500.0,0.0001885,2]
[394186756,1763363441108,-500.0,0.0001885,2]
[394186757,1763363441117,-502.86159398,0.0001885,2]
[394186758,1763363441127,-1582.11436431,0.00018868,2]
[394186759,1763363441136,-1016.64132678,0.00018868,2]
[394186760,1763363441145,-500.0,0.00018936,2]
[394186761,1763363441155,-260.0,0.00018981,2]
[394186762,1763363441164,-7369.96,0.00019032,3]
[394186763,1763363441173,-3684.98,0.00019032,3]
[394186764,1763363441181,-1842.5,0.00019032,3]
[394186765,1763363441191,-921.24,0.00019032,3]
[394186766,1763363441204,-524.87998137,0.00019068,2]
[394186767,1763363441214,-513.64025914,0.00019068,2]
[394186768,1763363441224,-1185.90415884,0.00019068,2]
[394186769,1763363441233,-1517.26996116,0.00019068,2]
[394186770,1763363441243,-460.62,0.00019117,3]
[394186771,1763363441253,-301.0,0.00019174,2]
[394186772,1763363441337,-420.0,0.00019174,2]
[394186773,1763363441347,-420.0,0.00019174,2]
[394186774,1763363441357,-1680.0,0.00019175,2]
[394186775,1763363441369,-500.0,0.0001921,2]
[394186776,1763363441379,-1680.0,0.00019269,2]
[394186777,1763363441390,-1000.0,0.00019398,2]
[394186778,1763363441401,-1000.0,0.00019398,2]
[394186779,1763363441412,-501.54850908,0.00019398,2]
[394186780,1763363441422,-1000.83212326,0.00019398,2]
[394186781,1763363441434,-357.78598318,0.00019398,2]
[394186782,1763363441444,-1000.0,0.00019398,2]
[394186783,1763363441456,-509.45721812,0.00019398,2]
[394186784,1763363441467,-1000.0,0.00019398,2]
[394186785,1763363441477,-500.0,0.00019484,2]
[394186786,1763363441487,-360.0,0.00019529,2]
[394186787,1763363441497,-177.0,0.00019554,2]
[394186788,1763363441507,-500.0,0.00019758,2]
[394186789,1763363441517,-720.0,0.00019926,2]
[394186790,1763363441526,-1004.37558909,0.00019946,2]
[394186791,1763363441536,-504.70574074,0.00019946,2]
[394186792,1763363441545,-1500.0,0.00019946,2]
[394186793,1763363441555,-541.04800509,0.00019946,2]
[394186794,1763363441565,-1152.0,0.0002,2]
[394186795,1763363441574,-2000.0,0.0002,7]
[394186796,1763363441584,-500.0,0.00020032,2]
[394186797,1763363441594,-460.0,0.00020077,2]
[394186798,1763363441603,-318.368229,0.00020187,2]
[394186799,1763363441613,-446.25199303,0.00020296,2]
[394186800,1763363441622,-500.0,0.00020306,2]
[394186801,1763363441632,-2000.0,0.00020494,2]
[394186802,1763363441641,-500.0,0.0002058,2]
[394186803,1763363441650,-560.0,0.00020625,2]
[394186804,1763363441659,-500.0,0.00020854,2]
[394186805,1763363441669,-587.0,0.0002093,2]
[394186806,1763363441678,-547.0,0.00020931,2]
[394186807,1763363441687,-2500.0,0.00021042,2]
[394186808,1763363441697,-500.0,0.00021128,2]
[394186809,1763363441707,-1084.0,0.00021137,2]
[394186810,1763363441716,-660.0,0.00021173,2]
[394186811,1763363441725,-500.0,0.00021402,2]
[394186812,1763363441734,-204.0,0.00021554,2]
[394186813,1763363441744,-3000.0,0.0002159,2]
[394186814,1763363441753,-500.0,0.00021676,2]
[394186815,1763363441763,-760.0,0.00021721,2]
[394186816,1763363441772,-500.0,0.00021917,2]
[394186817,1763363441782,-864.0,0.00021918,20]
[394186818,1763363441792,-395.03358643,0.0002195,2]
[394186819,1763363441801,-220.0,0.00022,5]
[394186820,1763363441811,-153.59,0.00022,7]
[394186821,1763363441819,-236.51,0.00022,14]
[394186822,1763363441828,-6905.69,0.00022,7]
[394186823,1763363441840,-1430.52966827,0.00022138,2]
[394186824,1763363441849,-860.0,0.00022269,2]
[394186825,1763363441859,-446.25199303,0.00022554,2]
[394186826,1763363441871,-960.0,0.00022817,2]
[394186827,1763363441880,-823.0,0.00022847,2]
[394186828,1763363441889,-500.0,0.00023013,2]
[394186829,1763363441899,-1060.0,0.00023365,2]
[394186830,1763363441908,-231.0,0.00023554,2]
[394186831,1763363441918,-863.32266703,0.00023913,2]
[394186832,1763363441927,-500.0,0.00024109,2]
[394186833,1763363441937,-1000.0,0.0002411,20]
[394186834,1763363441947,-380.0,0.00024658,2]
[394186835,1763363441956,-171.1131332,0.00024759,2]
[394186836,1763363441966,-435.59980476,0.00024773,2]
[394186837,1763363441974,-446.25199303,0.00024811,2]
[394186838,1763363441984,-12962.04999538,0.00024841,2]
[394186839,1763363441994,-500.0,0.00024873,2]
[394186840,1763363442003,-377.89329795,0.00024873,2]
[394186841,1763363442013,-500.0,0.00024873,2]
[394186842,1763363442022,-500.0,0.00024873,2]
[394186843,1763363442031,-500.0,0.00024873,2]
[394186844,1763363442041,-500.0,0.00024873,2]
[394186845,1763363442051,-151.0,0.000249,7]
[394186846,1763363442060,-151.0,0.000249,7]
[394186847,1763363442070,-2073.120455,0.000249,7]
[394186848,1763363442079,-2073.120455,0.000249,7]
[394186849,1763363442088,-2073.120455,0.000249,7]
[394186850,1763363442098,-292.22192,0.000249,7]
[394186851,1763363442107,-2073.120455,0.000249,7]
[394186852,1763363442117,-292.22192,0.000249,7]
[394186853,1763363442126,-292.22192,0.000249,7]
[394186854,1763363442135,-292.22192,0.000249,7]
[394186855,1763363442144,-151.0,0.000249,2]
[394186856,1763363442154,-151.0,0.000249,2]
[394186857,1763363442164,-152.278821,0.000249,7]
[394186858,1763363442174,-151.0,0.000249,2]
[394186859,1763363442183,-152.278821,0.000249,7]
[394186860,1763363442193,-152.278821,0.000249,7]
[394186861,1763363442203,-152.278821,0.000249,7]
[394186862,1763363442212,-151.0,0.000249,7]
[394186863,1763363442222,-151.0,0.000249,7]
[394186864,1763363442231,-151.0,0.000249,7]
[394186865,1763363442240,-229.347791,0.000249,7]
[394186866,1763363442251,-229.347791,0.000249,7]
[394186867,1763363442261,-229.347791,0.000249,7]
[394186868,1763363442271,-229.347791,0.000249,7]
[394186869,1763363442280,-151.0,0.000249,7]
[394186870,1763363442295,-151.0,0.000249,7]
[394186871,1763363442305,-157.673838,0.000249,7]
[394186873,1763363442315,-630157.33265,0.000249,2]
[394186875,1763363442327,-1152.0,0.0002494,2]
[394186876,1763363442336,-665.927768,0.0002513,2]
[394186877,1763363442346,-500.0,0.00025205,2]
[394186878,1763363442356,-400.67432439,0.00025343,2]
[394186879,1763363442368,-182.75279002,0.00025421,2]
[394186880,1763363442378,-1106.11024176,0.00025421,2]
[394186881,1763363442387,-664.0898945,0.00025421,2]
[394186882,1763363442397,-502.73202336,0.00025421,2]
[394186883,1763363442407,-274.0948081,0.00025421,2]
[394186884,1763363442416,-500.0,0.0002552,2]
[394186885,1763363442426,-500.0,0.0002552,2]
[394186886,1763363442436,-500.0,0.0002552,2]
[394186887,1763363442445,-258.0,0.00025554,2]
[394186889,1763363442454,-1001.47190717,0.00026068,2]
[394186891,1763363442465,-1000.0,0.00026068,2]
[394186892,1763363442474,-150.0,0.0002614,2]
[394186893,1763363442484,-466.99895109,0.0002615,2]
[394186894,1763363442493,-500.0,0.0002615,2]
[394186895,1763363442503,-500.0,0.00026301,2]
[394186896,1763363442514,-6905.69,0.000264,7]
[394186897,1763363442523,-1000.0,0.00026521,30]
[394186898,1763363442533,-244.0,0.00026521,30]
[394186899,1763363442544,-1500.0,0.00026616,2]
[394186900,1763363442554,-318.368229,0.00026676,2]
[394186901,1763363442564,-300.0,0.00026688,2]
[394186902,1763363442573,-1000.0,0.00026698,2]
[394186903,1763363442583,-446.25199303,0.00027068,2]
[394186904,1763363442593,-1855.51592409,0.00027164,2]
[394186905,1763363442603,-185.0,0.00027224,2]
[394186906,1763363442613,-450.0,0.00027236,2]
[394186907,1763363442622,-1500.0,0.00027246,2]
[394186908,1763363442631,-500.0,0.00027397,2]
[394186909,1763363442640,-151.0,0.00027397,7]
[394186910,1763363442650,-151.0,0.00027397,7]
[394186911,1763363442659,-151.0,0.00027397,7]
[394186912,1763363442668,-151.0,0.00027397,7]
[394186913,1763363442678,-151.0,0.00027397,7]
[394186914,1763363442687,-151.0,0.00027397,7]
[394186915,1763363442696,-240.734169,0.00027397,7]
[394186916,1763363442706,-151.0,0.00027397,7]
[394186917,1763363442716,-151.0,0.00027397,7]
[394186918,1763363442725,-151.0,0.00027397,7]
[394186919,1763363442734,-243.173132,0.00027397,7]
[394186920,1763363442743,-151.0,0.00027397,7]
[394186921,1763363442753,-151.0,0.00027397,7]
[394186922,1763363442763,-151.0,0.00027397,7]
[394186923,1763363442772,-151.0,0.00027397,7]
[394186924,1763363442783,-151.0,0.00027397,7]
[394186925,1763363442793,-151.0,0.00027397,7]
[394186926,1763363442802,-151.558238,0.00027397,7]
[394186927,1763363442812,-151.0,0.00027397,7]
[394186928,1763363442821,-151.0,0.00027397,7]
[394186929,1763363442831,-151.0,0.00027397,7]
[394186930,1763363442840,-151.0,0.00027397,7]
[394186931,1763363442849,-151.0,0.00027397,7]
[394186932,1763363442858,-270.477494,0.00027397,7]
[394186933,1763363442868,-270.477494,0.00027397,7]
[394186934,1763363442877,-270.477494,0.00027397,7]
[394186935,1763363442886,-270.477494,0.00027397,7]
[394186936,1763363442895,-474.194151,0.00027397,7]
[394186937,1763363442904,-151.0,0.00027397,7]
[394186938,1763363442914,-151.0,0.00027397,7]
[394186939,1763363442923,-151.0,0.00027397,7]
[394186940,1763363442933,-151.0,0.00027397,7]
[394186941,1763363442942,-474.194151,0.00027397,7]
[394186942,1763363442951,-151.0,0.00027397,7]
[394186943,1763363442960,-151.0,0.00027397,7]
[394186944,1763363443078,-474.194151,0.00027397,7]
[394186945,1763363443089,-151.0,0.00027397,7]
[394186946,1763363443099,-474.194151,0.00027397,7]
[394186947,1763363443109,-151.0,0.00027397,7]
[394186948,1763363443119,-151.0,0.00027397,7]
[394186949,1763363443128,-151.0,0.00027397,7]
[394186950,1763363443137,-151.0,0.00027397,7]
[394186951,1763363443147,-151.0,0.00027397,7]
[394186952,1763363443156,-151.0,0.00027397,7]
[394186953,1763363443165,-151.0,0.00027397,7]
[394186954,1763363443176,-151.0,0.00027397,7]
[394186955,1763363443186,-161.834286,0.00027397,7]
[394186956,1763363443197,-167.502976,0.00027397,7]
[394186957,1763363443206,-289.395792,0.00027397,7]
[394186958,1763363443215,-224.269866,0.00027397,7]
[394186959,1763363443226,-151.0,0.00027397,7]
[394186960,1763363443237,-151.0,0.00027397,7]
[394186961,1763363443248,-151.0,0.00027397,7]
[394186962,1763363443258,-151.0,0.00027397,7]
[394186963,1763363443267,-151.0,0.00027397,7]
[394186964,1763363443277,-151.0,0.00027397,7]
[394186965,1763363443290,-151.0,0.00027397,7]
[394186966,1763363443302,-151.0,0.00027397,7]
[394186967,1763363443311,-151.0,0.00027397,7]
[394186968,1763363443320,-151.0,0.00027397,7]
[394186969,1763363443331,-151.0,0.00027397,7]
[394186970,1763363443340,-151.0,0.00027397,7]
[394186971,1763363443349,-188.250681,0.00027397,7]
[394186972,1763363443359,-151.0,0.00027397,7]
[394186973,1763363443368,-151.0,0.00027397,7]
[394186974,1763363443378,-151.0,0.00027397,2]
[394186975,1763363443387,-151.0,0.00027397,7]
[394186976,1763363443396,-3061.85446,0.00027397,7]
[394186977,1763363443406,-151.0,0.00027397,7]
[394186978,1763363443415,-3061.85446,0.00027397,7]
[394186979,1763363443424,-151.0,0.00027397,7]
[394186980,1763363443434,-3061.85446,0.00027397,7]
[394186981,1763363443443,-1468.53,0.000274,2]
[394186982,1763363443453,-285.0,0.00027554,2]
[394186983,1763363443463,-600.0,0.00027784,5]
[394186984,1763363443476,-2000.0,0.00027794,5]
[394186985,1763363443486,-450.63260107,0.00028332,5]
[394186986,1763363443496,-1931.38695596,0.00028342,5]
[394186987,1763363443506,-500.0,0.00028493,2]
[394186988,1763363443515,-1000.0,0.00029173,30]
[394186989,1763363443524,-492.0,0.00029173,30]
[394186990,1763363443534,-446.69824502,0.00029325,2]
[394186991,1763363443543,-312.0,0.00029554,2]
[394186992,1763363443552,-253.89987463,0.00029589,2]
[394186993,1763363443562,-6905.69,0.000313,7]
[394186994,1763363443575,-150.0,0.0003133,2]
[394186995,1763363443584,-339.0,0.00031554,2]
[394186996,1763363443594,-1000.0,0.0003209,30]
[394186997,1763363443604,-791.0,0.0003209,30]
[394186998,1763363443613,-500.0,0.00032524,7]
[394186999,1763363443624,-224.87,0.00032822,2]
[394187000,1763363443634,-151.0,0.00032877,31]
[394187001,1763363443643,-2666.55,0.00032877,10]
[394187002,1763363443653,-4611.02,0.00032877,10]
[394187003,1763363443663,-3842.51,0.00032877,10]
[394187004,1763363443673,-3202.1,0.00032877,10]
[394187005,1763363443684,-500.0,0.00032877,7]
[394187006,1763363443694,-509.47955205,0.00032877,7]
[394187007,1763363443704,-1000.0,0.00032877,14]
[394187008,1763363443713,-151.0,0.00032877,14]
[394187009,1763363443724,-5000.0,0.00033,4]
[394187010,1763363443733,-308.61432963,0.00033008,2]
[394187011,1763363443742,-500.0,0.0003308,7]
[394187012,1763363443752,-318.368229,0.00033165,2]
[394187013,1763363443761,-181.77634872,0.000332,117]
[394187014,1763363443770,-837.00259935,0.00033296,7]
[394187015,1763363443780,-10000.0,0.0003346,2]
[394187016,1763363443790,-4999.0,0.0003348,4]
[394187017,1763363443799,-5000.0,0.000335,4]
[394187018,1763363443809,-1468.53,0.000335,14]
[394187019,1763363443819,-366.0,0.00033554,120]
[394187020,1763363443828,-512.24870481,0.00033701,7]
[394187021,1763363443837,-5000.0,0.00033944,2]
[394187022,1763363443847,-337.3,0.00034314,2]
[394187023,1763363443856,-1000.0,0.000347,14]
[394187024,1763363443867,-156.0,0.00035,120]
[394187025,1763363443876,-1000.0,0.00035299,30]
[394187026,1763363443885,-1000.0,0.00035299,30]
[394187027,1763363443895,-393.0,0.00035554,120]
[394187028,1763363443904,-449.74,0.00035806,2]
[394187029,1763363443913,-500.0,0.00035807,30]
[394187030,1763363443922,-236.51,0.00036,30]
[394187031,1763363443931,-5225.01172944,0.00036389,2]
[394187032,1763363443939,-1000.0,0.00036522,14]
[394187033,1763363443949,-438.15074254,0.00037282,2]
[394187034,1763363443958,-788.67133657,0.00037282,2]
[394187035,1763363443968,-500.0,0.00037287,30]
[394187036,1763363443977,-562.17,0.00037297,2]
[394187037,1763363443986,-6905.69,0.000373,14]
[394187038,1763363443995,-3402.114146,0.000374,2]
[394187039,1763363444005,-420.0,0.00037554,120]
[394187040,1763363444015,-3402.114146,0.00037665,2]
[394187041,1763363444027,-1468.53,0.000379,14]
[394187042,1763363444037,-3402.114146,0.00037965,2]
[394187043,1763363444046,-3402.114149,0.000381,2]
[394187044,1763363444056,-2546.7831965,0.00038146,2]
[394187045,1763363444066,-46445.7028783,0.00038146,2]
[394187046,1763363444077,-756.29006446,0.00038153,42]
[394187047,1763363444087,-505.03306875,0.00038173,2]
[394187048,1763363444096,-501.3914242,0.00038173,5]
[394187049,1763363444107,-500.4503771,0.00038173,5]
[394187050,1763363444117,-279474.524841,0.00038248,2]
[394187051,1763363444127,-158.748866,0.00038248,31]
[394187052,1763363444138,-151.0,0.00038248,31]
[394187053,1763363444147,-151.0,0.00038248,31]
[394187054,1763363444157,-151.0,0.00038248,31]
[394187055,1763363444167,-151.0,0.00038248,31]
[394187056,1763363444177,-191.755067,0.00038248,31]
[394187057,1763363444186,-151.0,0.00038248,31]
[394187058,1763363444196,-191.755067,0.00038248,31]
[394187059,1763363444205,-191.755067,0.00038248,31]
[394187060,1763363444214,-191.755067,0.00038248,31]
[394187061,1763363444223,-151.0,0.00038248,31]
[394187062,1763363444233,-151.0,0.00038248,31]
[394187063,1763363444242,-151.0,0.00038248,31]
[394187064,1763363444252,-151.0,0.00038248,31]
[394187065,1763363444261,-151.0,0.00038248,31]
[394187066,1763363444271,-151.0,0.00038248,31]
[394187067,1763363444280,-157.611051,0.00038248,31]
[394187068,1763363444293,-151.0,0.00038248,31]
[394187069,1763363444303,-151.0,0.00038248,31]
[394187070,1763363444313,-151.0,0.00038248,31]
[394187071,1763363444322,-271.274429,0.00038248,31]
[394187072,1763363444333,-151.0,0.00038248,31]
[394187073,1763363444345,-151.0,0.00038248,31]
[394187074,1763363444355,-2073.120455,0.00038248,28]
[394187075,1763363444367,-2073.120455,0.00038248,28]
[394187076,1763363444376,-2073.120455,0.00038248,28]
[394187077,1763363444386,-292.22192,0.00038248,31]
[394187078,1763363444396,-2073.120455,0.00038248,28]
[394187079,1763363444405,-292.22192,0.00038248,31]
[394187080,1763363444414,-292.22192,0.00038248,31]
[394187081,1763363444424,-292.22192,0.00038248,31]
[394187082,1763363444433,-151.0,0.00038248,31]
[394187083,1763363444443,-151.0,0.00038248,31]
[394187084,1763363444452,-151.0,0.00038248,31]
[394187085,1763363444462,-151.0,0.00038248,31]
[394187086,1763363444472,-151.0,0.00038248,2]
[394187087,1763363444482,-151.0,0.00038248,2]
[394187088,1763363444492,-152.278821,0.00038248,31]
[394187089,1763363444502,-151.0,0.00038248,31]
[394187090,1763363444511,-151.0,0.00038248,31]
[394187091,1763363444521,-151.0,0.00038248,2]
[394187092,1763363444530,-151.0,0.00038248,31]
[394187093,1763363444539,-152.278821,0.00038248,31]
[394187094,1763363444549,-151.0,0.00038248,31]
[394187095,1763363444558,-151.0,0.00038248,31]
[394187096,1763363444567,-152.278821,0.00038248,31]
[394187097,1763363444577,-151.0,0.00038248,31]
[394187098,1763363444648,-152.278821,0.00038248,31]
[394187099,1763363444664,-158.7648,0.00038248,31]
[394187100,1763363444674,-151.0,0.00038248,30]
[394187101,1763363444683,-151.0,0.00038248,31]
[394187102,1763363444695,-151.0,0.00038248,30]
[394187103,1763363444704,-151.0,0.00038248,30]
[394187104,1763363444714,-229.347791,0.00038248,15]
[394187105,1763363444723,-229.347791,0.00038248,15]
[394187106,1763363444732,-229.347791,0.00038248,15]
[394187107,1763363444742,-229.347791,0.00038248,15]